[Event "Titled Tuesday Blitz April 4 Early 2023"]
[White "Staudenhocker43"]
[Black "Tsotsonava, Elene"]
[BlackFideId "13615939"]
[WhiteElo "2568"]
[BlackElo "1829"]
[Result "0-1"]
[Round "01"]
[TimeControl "180+2"]
[Date "2023.04.04"]
[WhiteClock "0:00:20"]
[BlackClock "0:00:06"]

1. d4 {[%clk 0:02:59]}  Nf6 {[%clk 0:02:22]} 2. c4 {[%clk 0:02:58]}  e6 {[%clk 0:02:22]} 3. Nf3 {[%clk 0:02:56]}  b6 {[%clk 0:02:22]} 4. g3 {[%clk 0:02:56]}  Bb7 {[%clk 0:02:22]} 5. Bg2 {[%clk 0:02:55]}  Be7 {[%clk 0:02:21]} 6. O-O {[%clk 0:02:56]}  O-O {[%clk 0:02:22]} 7. d5 {[%clk 0:02:56]}  exd5 {[%clk 0:02:21]} 8. Nh4 {[%clk 0:02:57]}  c6 {[%clk 0:02:19]} 9. cxd5 {[%clk 0:02:57]}  Nxd5 {[%clk 0:02:20]} 10. Nf5 {[%clk 0:02:58]}  Bf6 {[%clk 0:02:19]} 11. e4 {[%clk 0:02:58]}  Nc7 {[%clk 0:02:18]} 12. Nd6 {[%clk 0:02:54]}  Ba6 {[%clk 0:02:17]} 13. Re1 {[%clk 0:02:55]}  Ne8 {[%clk 0:02:13]} 14. e5 {[%clk 0:02:55]}  Nxd6 {[%clk 0:02:12]} 15. exf6 {[%clk 0:02:55]}  Qxf6 {[%clk 0:02:09]} 16. Nc3 {[%clk 0:02:55]}  Nf5 {[%clk 0:02:06]} 17. Ne4 {[%clk 0:02:48]}  Qg6 {[%clk 0:02:05]} 18. h4 {[%clk 0:02:46]}  d5 {[%clk 0:02:05]} 19. h5 {[%clk 0:02:46]}  Qe6 {[%clk 0:01:59]} 20. Nc3 {[%clk 0:02:06]}  Qf6 {[%clk 0:01:53]} 21. Nxd5 {[%clk 0:01:48]}  cxd5 {[%clk 0:01:46]} 22. Qxd5 {[%clk 0:01:49]}  Nd7 {[%clk 0:01:24]} 23. Qxd7 {[%clk 0:01:48]}  Rad8 {[%clk 0:01:23]} 24. Qxa7 {[%clk 0:01:41]}  Bd3 {[%clk 0:01:15]} 25. Bf4 {[%clk 0:01:24]}  Qxb2 {[%clk 0:01:11]} 26. Bc7 {[%clk 0:01:14]}  Rd7 {[%clk 0:01:07]} 27. Qxb6 {[%clk 0:01:14]}  Qc2 {[%clk 0:01:01]} 28. Rec1 {[%clk 0:01:03]}  Qe2 {[%clk 0:00:57]} 29. Bf4 {[%clk 0:00:49]}  Qxh5 {[%clk 0:00:54]} 30. Qc6 {[%clk 0:00:39]}  Nd4 {[%clk 0:00:38]} 31. Qxd7 {[%clk 0:00:39]}  Ne2+ {[%clk 0:00:37]} 32. Kf1 {[%clk 0:00:39]}  Nxf4+ {[%clk 0:00:36]} 33. Kg1 {[%clk 0:00:35]}  Ne2+ {[%clk 0:00:34]} 34. Kf1 {[%clk 0:00:34]}  Nxc1+ {[%clk 0:00:34]} 35. Kg1 {[%clk 0:00:34]}  Ne2+ {[%clk 0:00:26]} 36. Kf1 {[%clk 0:00:34]}  Nxg3+ {[%clk 0:00:23]} 37. Kg1 {[%clk 0:00:35]}  Ne2+ {[%clk 0:00:21]} 38. Kf1 {[%clk 0:00:35]}  Nf4+ {[%clk 0:00:20]} 39. Kg1 {[%clk 0:00:35]}  Nxg2 {[%clk 0:00:20]} 40. Qxd3 {[%clk 0:00:35]}  Nf4 {[%clk 0:00:20]} 41. Qe4 {[%clk 0:00:34]}  Qg4+ {[%clk 0:00:20]} 42. Kh2 {[%clk 0:00:31]}  Qh3+ {[%clk 0:00:21]} 43. Kg1 {[%clk 0:00:32]}  Qg4+ {[%clk 0:00:18]} 44. Kh2 {[%clk 0:00:32]}  Qh5+ {[%clk 0:00:14]} 45. Kg3 {[%clk 0:00:24]}  Ne2+ {[%clk 0:00:14]} 46. Kg2 {[%clk 0:00:24]}  f5 {[%clk 0:00:13]} 47. Qf3 {[%clk 0:00:19]}  Qxf3+ {[%clk 0:00:13]} 48. Kxf3 {[%clk 0:00:20]}  Nd4+ {[%clk 0:00:13]} 49. Ke3 {[%clk 0:00:20]}  Nc2+ {[%clk 0:00:06]} 0-1


[Site "https://www.chess.com"]

[Event "Titled Tuesday Blitz April 4 Early 2023"]
[White "Thiel, Thomas"]
[Black "Janaszak, Dawid"]
[WhiteFideId "4615964"]
[BlackFideId "1119206"]
[WhiteElo "2223"]
[BlackElo "2220"]
[Result "0-1"]
[Round "01"]
[TimeControl "180+2"]
[Date "2023.04.04"]
[WhiteClock "0:00:07"]
[BlackClock "0:00:42"]

1. e4 {[%clk 0:02:58]}  c5 {[%clk 0:02:58]} 2. Nc3 {[%clk 0:02:53]}  e6 {[%clk 0:02:58]} 3. Nge2 {[%clk 0:02:52]}  a6 {[%clk 0:02:58]} 4. g3 {[%clk 0:02:52]}  b5 {[%clk 0:02:58]} 5. Bg2 {[%clk 0:02:49]}  Bb7 {[%clk 0:02:58]} 6. d4 {[%clk 0:02:49]}  cxd4 {[%clk 0:02:58]} 7. Nxd4 {[%clk 0:02:49]}  d6 {[%clk 0:02:57]} 8. O-O {[%clk 0:02:47]}  Be7 {[%clk 0:02:57]} 9. Re1 {[%clk 0:02:44]}  Qc7 {[%clk 0:02:56]} 10. a4 {[%clk 0:02:30]}  b4 {[%clk 0:02:55]} 11. Nd5 {[%clk 0:02:30]}  exd5 {[%clk 0:02:55]} 12. exd5 {[%clk 0:02:30]}  Kf8 {[%clk 0:02:47]} 13. Nc6 {[%clk 0:02:25]}  Nxc6 {[%clk 0:02:40]} 14. dxc6 {[%clk 0:02:26]}  Bxc6 {[%clk 0:02:41]} 15. Be3 {[%clk 0:02:13]}  Bxg2 {[%clk 0:02:40]} 16. Kxg2 {[%clk 0:02:14]}  Qc6+ {[%clk 0:02:30]} 17. Kg1 {[%clk 0:02:12]}  Bf6 {[%clk 0:02:23]} 18. Bf4 {[%clk 0:02:06]}  Be5 {[%clk 0:02:17]} 19. Qd2 {[%clk 0:01:55]}  Bxf4 {[%clk 0:02:12]} 20. Qxf4 {[%clk 0:01:56]}  Nf6 {[%clk 0:02:10]} 21. Rad1 {[%clk 0:01:45]}  Re8 {[%clk 0:02:10]} 22. Qxb4 {[%clk 0:01:41]}  Rxe1+ {[%clk 0:02:02]} 23. Rxe1 {[%clk 0:01:38]}  g6 {[%clk 0:01:57]} 24. Rd1 {[%clk 0:01:31]}  Qc5 {[%clk 0:01:46]} 25. Qf4 {[%clk 0:01:24]}  Ne8 {[%clk 0:01:22]} 26. Rd3 {[%clk 0:01:04]}  Kg7 {[%clk 0:01:17]} 27. Rc3 {[%clk 0:00:59]}  Qe5 {[%clk 0:01:13]} 28. Qc4 {[%clk 0:00:57]}  Nf6 {[%clk 0:01:11]} 29. Qxa6 {[%clk 0:00:46]}  h5 {[%clk 0:01:11]} 30. Qd3 {[%clk 0:00:43]}  h4 {[%clk 0:01:10]} 31. Rc6 {[%clk 0:00:35]}  hxg3 {[%clk 0:01:09]} 32. fxg3 {[%clk 0:00:32]}  d5 {[%clk 0:00:57]} 33. a5 {[%clk 0:00:30]}  Qxb2 {[%clk 0:00:55]} 34. a6 {[%clk 0:00:29]}  Re8 {[%clk 0:00:48]} 35. a7 {[%clk 0:00:22]}  Qa1+ {[%clk 0:00:47]} 36. Kg2 {[%clk 0:00:19]}  Qxa7 {[%clk 0:00:47]} 37. Qc3 {[%clk 0:00:12]}  d4 {[%clk 0:00:48]} 38. Qf3 {[%clk 0:00:07]}  Re6 {[%clk 0:00:42]} 0-1


[Site "https://www.chess.com"]

[Event "Titled Tuesday Blitz April 4 Early 2023"]
[White "Manukyan, Sargis V."]
[Black "Putri, Regita Desyari"]
[WhiteFideId "13303465"]
[BlackFideId "7109083"]
[WhiteElo "2236"]
[BlackElo "1930"]
[Result "0-1"]
[Round "01"]
[TimeControl "180+2"]
[Date "2023.04.04"]
[WhiteClock "0:01:28"]
[BlackClock "0:00:06"]

1. Nc3 {[%clk 0:03:00]}  d5 {[%clk 0:02:57]} 2. d4 {[%clk 0:03:00]}  Nf6 {[%clk 0:02:14]} 3. Bf4 {[%clk 0:02:58]}  e6 {[%clk 0:01:53]} 4. e3 {[%clk 0:02:53]}  Bd6 {[%clk 0:01:54]} 5. Nge2 {[%clk 0:02:52]}  O-O {[%clk 0:01:48]} 6. g4 {[%clk 0:02:51]}  b6 {[%clk 0:01:42]} 7. g5 {[%clk 0:02:50]}  Ne4 {[%clk 0:01:41]} 8. Nxe4 {[%clk 0:02:50]}  dxe4 {[%clk 0:01:41]} 9. Bg2 {[%clk 0:02:50]}  Bb7 {[%clk 0:01:38]} 10. h4 {[%clk 0:02:49]}  Nd7 {[%clk 0:01:34]} 11. c3 {[%clk 0:02:45]}  e5 {[%clk 0:01:24]} 12. Bg3 {[%clk 0:02:45]}  Qe7 {[%clk 0:01:22]} 13. Qc2 {[%clk 0:02:44]}  Rad8 {[%clk 0:01:19]} 14. Bxe4 {[%clk 0:02:42]}  Bxe4 {[%clk 0:01:19]} 15. Qxe4 {[%clk 0:02:42]}  Rfe8 {[%clk 0:01:16]} 16. O-O-O {[%clk 0:02:40]}  exd4 {[%clk 0:01:10]} 17. Qxe7 {[%clk 0:02:39]}  Rxe7 {[%clk 0:01:11]} 18. cxd4 {[%clk 0:02:39]}  Nf8 {[%clk 0:01:06]} 19. Kb1 {[%clk 0:02:36]}  Red7 {[%clk 0:01:03]} 20. Rc1 {[%clk 0:02:36]}  Ne6 {[%clk 0:01:00]} 21. Bxd6 {[%clk 0:02:35]}  Rxd6 {[%clk 0:01:00]} 22. Rc4 {[%clk 0:02:33]}  c5 {[%clk 0:00:59]} 23. Rd1 {[%clk 0:02:27]}  b5 {[%clk 0:00:50]} 24. Rc2 {[%clk 0:02:20]}  g6 {[%clk 0:00:37]} 25. Rcd2 {[%clk 0:02:20]}  c4 {[%clk 0:00:36]} 26. e4 {[%clk 0:02:15]}  a5 {[%clk 0:00:28]} 27. d5 {[%clk 0:02:15]}  Nc5 {[%clk 0:00:28]} 28. f3 {[%clk 0:02:15]}  Nd3 {[%clk 0:00:26]} 29. Nc1 {[%clk 0:02:14]}  Ne5 {[%clk 0:00:25]} 30. Rf2 {[%clk 0:02:13]}  f6 {[%clk 0:00:20]} 31. f4 {[%clk 0:02:08]}  Ng4 {[%clk 0:00:19]} 32. Rf3 {[%clk 0:02:08]}  f5 {[%clk 0:00:07]} 33. exf5 {[%clk 0:02:04]}  gxf5 {[%clk 0:00:08]} 34. Ne2 {[%clk 0:02:00]}  Rxd5 {[%clk 0:00:08]} 35. Rxd5 {[%clk 0:02:00]}  Rxd5 {[%clk 0:00:09]} 36. Nc3 {[%clk 0:02:01]}  Rc5 {[%clk 0:00:09]} 37. Rf1 {[%clk 0:01:59]}  Kf7 {[%clk 0:00:08]} 38. Rd1 {[%clk 0:01:58]}  Kg6 {[%clk 0:00:09]} 39. Rd6+ {[%clk 0:01:58]}  Kh5 {[%clk 0:00:09]} 40. Rd7 {[%clk 0:01:52]}  h6 {[%clk 0:00:07]} 41. Nd5 {[%clk 0:01:46]}  Kxh4 {[%clk 0:00:05]} 42. g6 {[%clk 0:01:46]}  Rc8 {[%clk 0:00:03]} 43. Ne7 {[%clk 0:01:43]}  Re8 {[%clk 0:00:03]} 44. g7 {[%clk 0:01:44]}  Nf6 {[%clk 0:00:04]} 45. Rd6 {[%clk 0:01:43]}  Ng8 {[%clk 0:00:04]} 46. Rxh6+ {[%clk 0:01:42]}  Nxh6 {[%clk 0:00:04]} 47. Ng6+ {[%clk 0:01:37]}  Kg4 {[%clk 0:00:04]} 48. a4 {[%clk 0:01:35]}  Rg8 {[%clk 0:00:04]} 49. axb5 {[%clk 0:01:32]}  Rxg7 {[%clk 0:00:05]} 50. Ne5+ {[%clk 0:01:33]}  Kxf4 {[%clk 0:00:05]} 51. Nxc4 {[%clk 0:01:34]}  Ke4 {[%clk 0:00:05]} 52. b6 {[%clk 0:01:34]}  f4 {[%clk 0:00:05]} 53. b7 {[%clk 0:01:33]}  Rxb7 {[%clk 0:00:04]} 54. Nd6+ {[%clk 0:01:34]}  Ke3 {[%clk 0:00:05]} 55. Nxb7 {[%clk 0:01:34]}  f3 {[%clk 0:00:06]} 56. Nd6 {[%clk 0:01:29]}  f2 {[%clk 0:00:06]} 57. Nf5+ {[%clk 0:01:28]}  Nxf5 {[%clk 0:00:06]} 0-1


[Site "https://www.chess.com"]

[Event "Titled Tuesday Blitz April 4 Early 2023"]
[White "rionelG"]
[Black "Fiorito, Joaquin"]
[BlackFideId "180173"]
[WhiteElo "2207"]
[BlackElo "2157"]
[Result "0-1"]
[Round "01"]
[TimeControl "180+2"]
[Date "2023.04.04"]
[WhiteClock "0:00:02"]
[BlackClock "0:00:18"]

1. e4 {[%clk 0:02:47]}  c6 {[%clk 0:02:59]} 2. d4 {[%clk 0:02:47]}  d5 {[%clk 0:02:59]} 3. e5 {[%clk 0:02:47]}  Bf5 {[%clk 0:02:59]} 4. Nf3 {[%clk 0:02:47]}  e6 {[%clk 0:02:59]} 5. Be2 {[%clk 0:02:47]}  c5 {[%clk 0:02:59]} 6. Be3 {[%clk 0:02:45]}  cxd4 {[%clk 0:02:59]} 7. Nxd4 {[%clk 0:02:44]}  Ne7 {[%clk 0:03:00]} 8. O-O {[%clk 0:02:41]}  Nbc6 {[%clk 0:03:00]} 9. c4 {[%clk 0:02:41]}  a6 {[%clk 0:02:45]} 10. cxd5 {[%clk 0:02:29]}  Nxd5 {[%clk 0:02:40]} 11. Nxf5 {[%clk 0:02:17]}  exf5 {[%clk 0:02:40]} 12. Nc3 {[%clk 0:02:15]}  Nxe3 {[%clk 0:02:35]} 13. fxe3 {[%clk 0:02:16]}  Bc5 {[%clk 0:02:22]} 14. Kh1 {[%clk 0:02:05]}  O-O {[%clk 0:02:18]} 15. Rxf5 {[%clk 0:01:58]}  Bxe3 {[%clk 0:02:17]} 16. Qf1 {[%clk 0:01:47]}  Bd4 {[%clk 0:01:51]} 17. e6 {[%clk 0:00:56]}  fxe6 {[%clk 0:01:38]} 18. Rxf8+ {[%clk 0:00:57]}  Qxf8 {[%clk 0:01:39]} 19. Bc4 {[%clk 0:00:55]}  Kh8 {[%clk 0:01:31]} 20. Bxe6 {[%clk 0:00:48]}  Ne5 {[%clk 0:01:27]} 21. Qxf8+ {[%clk 0:00:41]}  Rxf8 {[%clk 0:01:26]} 22. h3 {[%clk 0:00:38]}  Nd3 {[%clk 0:01:20]} 23. Bd5 {[%clk 0:00:18]}  b5 {[%clk 0:01:12]} 24. Ne2 {[%clk 0:00:11]}  Bxb2 {[%clk 0:01:12]} 25. Rb1 {[%clk 0:00:10]}  Be5 {[%clk 0:01:11]} 26. Bb7 {[%clk 0:00:09]}  Nc5 {[%clk 0:01:04]} 27. Bf3 {[%clk 0:00:07]}  g6 {[%clk 0:00:56]} 28. Rd1 {[%clk 0:00:07]}  Na4 {[%clk 0:00:22]} 29. Rd5 {[%clk 0:00:08]}  Bc3 {[%clk 0:00:18]} 30. Nxc3 {[%clk 0:00:05]}  Nxc3 {[%clk 0:00:19]} 31. Rd6 {[%clk 0:00:06]}  a5 {[%clk 0:00:18]} 32. Ra6 {[%clk 0:00:06]}  a4 {[%clk 0:00:18]} 33. Bc6 {[%clk 0:00:04]}  Rb8 {[%clk 0:00:18]} 34. Kg1 {[%clk 0:00:02]}  Nxa2 {[%clk 0:00:18]} 0-1


[Site "https://www.chess.com"]

[Event "Titled Tuesday Blitz April 4 Early 2023"]
[White "Castellanos Villela, Alejandro"]
[Black "Pappelis, Dimitrios"]
[WhiteFideId "3446379"]
[BlackFideId "4215281"]
[WhiteElo "2103"]
[BlackElo "2104"]
[Result "1-0"]
[Round "01"]
[TimeControl "180+2"]
[Date "2023.04.04"]
[WhiteClock "0:01:44"]
[BlackClock "0:00:06"]

1. e4 {[%clk 0:03:00]}  e5 {[%clk 0:02:56]} 2. Nc3 {[%clk 0:03:00]}  Nf6 {[%clk 0:02:51]} 3. Nf3 {[%clk 0:03:00]}  Nc6 {[%clk 0:02:47]} 4. Bb5 {[%clk 0:02:57]}  Bb4 {[%clk 0:02:38]} 5. O-O {[%clk 0:02:56]}  O-O {[%clk 0:02:35]} 6. d3 {[%clk 0:02:55]}  d6 {[%clk 0:02:32]} 7. Bg5 {[%clk 0:02:55]}  Bxc3 {[%clk 0:02:30]} 8. bxc3 {[%clk 0:02:54]}  h6 {[%clk 0:02:30]} 9. Bh4 {[%clk 0:02:54]}  Be6 {[%clk 0:02:28]} 10. Re1 {[%clk 0:02:50]}  g5 {[%clk 0:01:53]} 11. Nxg5 {[%clk 0:02:49]}  hxg5 {[%clk 0:01:52]} 12. Bxg5 {[%clk 0:02:50]}  Kg7 {[%clk 0:01:37]} 13. Bxc6 {[%clk 0:02:43]}  bxc6 {[%clk 0:01:37]} 14. Qf3 {[%clk 0:02:36]}  Rh8 {[%clk 0:01:14]} 15. Re3 {[%clk 0:02:23]}  Qe7 {[%clk 0:01:12]} 16. h4 {[%clk 0:02:12]}  Rag8 {[%clk 0:01:11]} 17. Rb1 {[%clk 0:02:10]}  Bg4 {[%clk 0:00:58]} 18. Bxf6+ {[%clk 0:02:04]}  Qxf6 {[%clk 0:00:53]} 19. Qxg4+ {[%clk 0:02:04]}  Qg6 {[%clk 0:00:47]} 20. Qxg6+ {[%clk 0:02:01]}  Kxg6 {[%clk 0:00:42]} 21. Rg3+ {[%clk 0:02:00]}  Kf6 {[%clk 0:00:39]} 22. Rxg8 {[%clk 0:02:01]}  Rxg8 {[%clk 0:00:39]} 23. Rb7 {[%clk 0:02:01]}  a5 {[%clk 0:00:31]} 24. Rxc7 {[%clk 0:02:01]}  Rb8 {[%clk 0:00:25]} 25. Rxc6 {[%clk 0:02:01]}  Ke6 {[%clk 0:00:21]} 26. Ra6 {[%clk 0:01:58]}  Rb2 {[%clk 0:00:21]} 27. Rxa5 {[%clk 0:01:58]}  Rxc2 {[%clk 0:00:22]} 28. Ra3 {[%clk 0:01:51]}  Rd2 {[%clk 0:00:13]} 29. c4 {[%clk 0:01:51]}  f5 {[%clk 0:00:10]} 30. f3 {[%clk 0:01:49]}  f4 {[%clk 0:00:09]} 31. Kh2 {[%clk 0:01:49]}  Kf6 {[%clk 0:00:08]} 32. Kh3 {[%clk 0:01:48]}  Kg6 {[%clk 0:00:09]} 33. Ra6 {[%clk 0:01:45]}  Rxd3 {[%clk 0:00:08]} 34. c5 {[%clk 0:01:46]}  Kh5 {[%clk 0:00:06]} 35. cxd6 {[%clk 0:01:44]} 1-0


[Site "https://www.chess.com"]

[Event "Titled Tuesday Blitz April 4 Early 2023"]
[White "Dahlgren, James Allen"]
[Black "Lymar, Vladislav"]
[WhiteFideId "22256873"]
[BlackFideId "14162180"]
[WhiteElo "2205"]
[BlackElo "2234"]
[Result "0-1"]
[Round "01"]
[TimeControl "180+2"]
[Date "2023.04.04"]
[WhiteClock "0:00:19"]
[BlackClock "0:00:56"]

1. e4 {[%clk 0:03:00]}  c5 {[%clk 0:02:53]} 2. c4 {[%clk 0:02:44]}  g6 {[%clk 0:02:48]} 3. Nc3 {[%clk 0:02:45]}  Nc6 {[%clk 0:02:49]} 4. g3 {[%clk 0:02:44]}  Bg7 {[%clk 0:02:49]} 5. Bg2 {[%clk 0:02:44]}  d6 {[%clk 0:02:45]} 6. Nge2 {[%clk 0:02:43]}  e5 {[%clk 0:02:46]} 7. O-O {[%clk 0:02:42]}  Nge7 {[%clk 0:02:46]} 8. f4 {[%clk 0:02:37]}  O-O {[%clk 0:02:46]} 9. d3 {[%clk 0:02:23]}  Nd4 {[%clk 0:02:45]} 10. Nxd4 {[%clk 0:02:20]}  cxd4 {[%clk 0:02:44]} 11. Nd5 {[%clk 0:02:21]}  Nxd5 {[%clk 0:02:44]} 12. cxd5 {[%clk 0:02:14]}  f5 {[%clk 0:02:42]} 13. b4 {[%clk 0:02:04]}  Bd7 {[%clk 0:02:36]} 14. a4 {[%clk 0:02:03]}  Rc8 {[%clk 0:02:33]} 15. Bd2 {[%clk 0:01:53]}  Qb6 {[%clk 0:02:13]} 16. Qb3 {[%clk 0:01:52]}  fxe4 {[%clk 0:02:07]} 17. Bxe4 {[%clk 0:01:51]}  Bh3 {[%clk 0:01:58]} 18. Rfc1 {[%clk 0:01:49]}  Bh6 {[%clk 0:01:47]} 19. b5 {[%clk 0:01:00]}  Rxc1+ {[%clk 0:01:41]} 20. Rxc1 {[%clk 0:01:01]}  exf4 {[%clk 0:01:41]} 21. a5 {[%clk 0:00:57]}  Qd8 {[%clk 0:01:37]} 22. b6 {[%clk 0:00:45]}  a6 {[%clk 0:01:05]} 23. Qc2 {[%clk 0:00:33]}  Qf6 {[%clk 0:00:57]} 24. Qc7 {[%clk 0:00:27]}  fxg3 {[%clk 0:00:55]} 25. Bxh6 {[%clk 0:00:20]}  Qf1+ {[%clk 0:00:55]} 26. Rxf1 {[%clk 0:00:19]}  Rxf1# {[%clk 0:00:56]} 0-1


[Site "https://www.chess.com"]

[Event "Titled Tuesday Blitz April 4 Early 2023"]
[White "Mikhaylova, Irina"]
[Black "Demin, Vladimir"]
[WhiteFideId "4109040"]
[BlackFideId "4167457"]
[WhiteElo "1975"]
[BlackElo "2559"]
[Result "1/2-1/2"]
[Round "01"]
[TimeControl "180+2"]
[Date "2023.04.04"]
[WhiteClock "0:00:24"]
[BlackClock "0:00:17"]

1. d4 {[%clk 0:02:59]}  d5 {[%clk 0:02:59]} 2. Nf3 {[%clk 0:02:59]}  Nf6 {[%clk 0:02:58]} 3. c4 {[%clk 0:03:00]}  e6 {[%clk 0:02:58]} 4. Nc3 {[%clk 0:03:00]}  c5 {[%clk 0:02:57]} 5. cxd5 {[%clk 0:02:59]}  cxd4 {[%clk 0:02:56]} 6. Nxd4 {[%clk 0:02:57]}  Nxd5 {[%clk 0:02:55]} 7. Bd2 {[%clk 0:02:57]}  Be7 {[%clk 0:02:51]} 8. e4 {[%clk 0:02:57]}  Nxc3 {[%clk 0:02:50]} 9. Bxc3 {[%clk 0:02:58]}  O-O {[%clk 0:02:51]} 10. Be2 {[%clk 0:02:57]}  Bd7 {[%clk 0:02:40]} 11. O-O {[%clk 0:02:55]}  Nc6 {[%clk 0:02:40]} 12. Nxc6 {[%clk 0:02:55]}  Bxc6 {[%clk 0:02:40]} 13. Qxd8 {[%clk 0:02:54]}  Rfxd8 {[%clk 0:02:40]} 14. f3 {[%clk 0:02:54]}  Bc5+ {[%clk 0:02:39]} 15. Kh1 {[%clk 0:02:54]}  f6 {[%clk 0:02:24]} 16. Rfd1 {[%clk 0:02:51]}  Kf7 {[%clk 0:02:24]} 17. Rxd8 {[%clk 0:02:49]}  Rxd8 {[%clk 0:02:25]} 18. Rd1 {[%clk 0:02:49]}  Rxd1+ {[%clk 0:02:23]} 19. Bxd1 {[%clk 0:02:49]}  Bb5 {[%clk 0:02:16]} 20. g3 {[%clk 0:02:42]}  Bf1 {[%clk 0:02:08]} 21. f4 {[%clk 0:02:34]}  Ke7 {[%clk 0:01:58]} 22. Bf3 {[%clk 0:02:34]}  b5 {[%clk 0:01:53]} 23. a3 {[%clk 0:02:32]}  Kd7 {[%clk 0:01:11]} 24. h4 {[%clk 0:02:05]}  Bb6 {[%clk 0:00:58]} 25. Kh2 {[%clk 0:01:43]}  a5 {[%clk 0:00:57]} 26. g4 {[%clk 0:01:36]}  a4 {[%clk 0:00:56]} 27. Kg3 {[%clk 0:01:33]}  Be3 {[%clk 0:00:51]} 28. e5 {[%clk 0:01:16]}  Ke7 {[%clk 0:00:45]} 29. exf6+ {[%clk 0:00:47]}  gxf6 {[%clk 0:00:46]} 30. g5 {[%clk 0:00:43]}  f5 {[%clk 0:00:41]} 31. h5 {[%clk 0:00:36]}  Kf7 {[%clk 0:00:40]} 32. Be5 {[%clk 0:00:31]}  Bc4 {[%clk 0:00:31]} 33. Bc6 {[%clk 0:00:27]}  Bc5 {[%clk 0:00:28]} 34. Bc3 {[%clk 0:00:25]}  Be3 {[%clk 0:00:21]} 35. Bf3 {[%clk 0:00:25]}  Bc5 {[%clk 0:00:17]} 36. Bc6 {[%clk 0:00:24]}  Be3 {[%clk 0:00:17]} 37. Bf3 {[%clk 0:00:24]}  Bc5 {[%clk 0:00:17]} 38. Bc6 {[%clk 0:00:24]} 1/2-1/2


[Site "https://www.chess.com"]

[Event "Titled Tuesday Blitz April 4 Early 2023"]
[White "Larina, Maria"]
[Black "Drori, Saar"]
[WhiteFideId "24113182"]
[BlackFideId "2812444"]
[WhiteElo "1848"]
[BlackElo "2322"]
[Result "0-1"]
[Round "01"]
[TimeControl "180+2"]
[Date "2023.04.04"]
[WhiteClock "0:00:07"]
[BlackClock "0:00:09"]

1. e4 {[%clk 0:02:59]}  c5 {[%clk 0:02:59]} 2. Nc3 {[%clk 0:02:58]}  d6 {[%clk 0:02:57]} 3. d4 {[%clk 0:02:58]}  cxd4 {[%clk 0:02:56]} 4. Qxd4 {[%clk 0:02:59]}  Nc6 {[%clk 0:02:56]} 5. Qd2 {[%clk 0:02:59]}  g6 {[%clk 0:02:54]} 6. b3 {[%clk 0:02:59]}  Bg7 {[%clk 0:02:53]} 7. Bb2 {[%clk 0:03:00]}  Nf6 {[%clk 0:02:53]} 8. O-O-O {[%clk 0:03:00]}  O-O {[%clk 0:02:53]} 9. f3 {[%clk 0:03:00]}  Bd7 {[%clk 0:02:45]} 10. g4 {[%clk 0:02:52]}  Rc8 {[%clk 0:02:44]} 11. h4 {[%clk 0:02:51]}  Nb4 {[%clk 0:02:24]} 12. Nge2 {[%clk 0:02:44]}  b5 {[%clk 0:01:53]} 13. h5 {[%clk 0:02:37]}  Nxc2 {[%clk 0:01:45]} 14. Kxc2 {[%clk 0:02:28]}  b4 {[%clk 0:01:44]} 15. hxg6 {[%clk 0:02:28]}  hxg6 {[%clk 0:01:15]} 16. Kb1 {[%clk 0:02:14]}  bxc3 {[%clk 0:01:11]} 17. Nxc3 {[%clk 0:02:15]}  Re8 {[%clk 0:00:58]} 18. Qh2 {[%clk 0:02:11]}  Be6 {[%clk 0:00:36]} 19. Bb5 {[%clk 0:01:41]}  Bd7 {[%clk 0:00:26]} 20. Bxd7 {[%clk 0:01:36]}  Qxd7 {[%clk 0:00:18]} 21. Nd5 {[%clk 0:01:28]}  Qc6 {[%clk 0:00:11]} 22. Bxf6 {[%clk 0:01:06]}  exf6 {[%clk 0:00:10]} 23. Rc1 {[%clk 0:00:48]}  Qd7 {[%clk 0:00:11]} 24. Qh7+ {[%clk 0:00:47]}  Kf8 {[%clk 0:00:10]} 25. Rcg1 {[%clk 0:00:31]}  Qb5 {[%clk 0:00:09]} 26. Rg2 {[%clk 0:00:18]}  Qd3+ {[%clk 0:00:09]} 27. Ka1 {[%clk 0:00:14]}  f5+ {[%clk 0:00:10]} 28. Rb2 {[%clk 0:00:11]}  Rc2 {[%clk 0:00:09]} 29. Rb1 {[%clk 0:00:07]}  Rxb2 {[%clk 0:00:09]} 30. Rxb2 {[%clk 0:00:07]}  Qd1# {[%clk 0:00:09]} 0-1


[Site "https://www.chess.com"]

[Event "Titled Tuesday Blitz April 4 Early 2023"]
[White "Aponte Ramos, Argimiro"]
[Black "Tomaszewski, Kacper"]
[WhiteFideId "3900568"]
[BlackFideId "1127373"]
[WhiteElo "2216"]
[BlackElo "2211"]
[Result "0-1"]
[Round "01"]
[TimeControl "180+2"]
[Date "2023.04.04"]
[WhiteClock "0:00:20"]
[BlackClock "0:00:44"]

1. e4 {[%clk 0:02:58]}  c5 {[%clk 0:02:58]} 2. Nf3 {[%clk 0:02:55]}  a6 {[%clk 0:02:58]} 3. c3 {[%clk 0:02:54]}  e6 {[%clk 0:02:58]} 4. d4 {[%clk 0:02:54]}  d5 {[%clk 0:02:54]} 5. e5 {[%clk 0:02:53]}  Bd7 {[%clk 0:02:52]} 6. Bd3 {[%clk 0:02:52]}  Bb5 {[%clk 0:02:48]} 7. O-O {[%clk 0:02:51]}  Bxd3 {[%clk 0:02:48]} 8. Qxd3 {[%clk 0:02:50]}  Nc6 {[%clk 0:02:48]} 9. a3 {[%clk 0:02:47]}  c4 {[%clk 0:02:47]} 10. Qe2 {[%clk 0:02:45]}  Na5 {[%clk 0:02:45]} 11. Nbd2 {[%clk 0:02:38]}  Ne7 {[%clk 0:02:43]} 12. Re1 {[%clk 0:02:37]}  Nec6 {[%clk 0:02:42]} 13. Nf1 {[%clk 0:02:37]}  Nb3 {[%clk 0:02:40]} 14. Rb1 {[%clk 0:02:37]}  b5 {[%clk 0:02:32]} 15. Bg5 {[%clk 0:02:34]}  Qb6 {[%clk 0:02:30]} 16. h4 {[%clk 0:02:31]}  a5 {[%clk 0:02:29]} 17. h5 {[%clk 0:02:28]}  h6 {[%clk 0:02:29]} 18. Bf4 {[%clk 0:02:24]}  b4 {[%clk 0:02:28]} 19. axb4 {[%clk 0:02:21]}  axb4 {[%clk 0:02:28]} 20. N3d2 {[%clk 0:02:09]}  Nca5 {[%clk 0:02:18]} 21. Qg4 {[%clk 0:02:03]}  Kd7 {[%clk 0:02:04]} 22. Be3 {[%clk 0:02:01]}  Nxd2 {[%clk 0:01:51]} 23. Nxd2 {[%clk 0:02:00]}  Nc6 {[%clk 0:01:49]} 24. f4 {[%clk 0:01:49]}  Ne7 {[%clk 0:01:47]} 25. Qf3 {[%clk 0:01:42]}  Ra6 {[%clk 0:01:19]} 26. g4 {[%clk 0:01:34]}  g6 {[%clk 0:01:19]} 27. hxg6 {[%clk 0:01:26]}  fxg6 {[%clk 0:01:18]} 28. Ra1 {[%clk 0:01:24]}  b3 {[%clk 0:01:16]} 29. Nf1 {[%clk 0:01:11]}  h5 {[%clk 0:01:15]} 30. Ng3 {[%clk 0:01:06]}  hxg4 {[%clk 0:01:10]} 31. Qxg4 {[%clk 0:01:05]}  Bg7 {[%clk 0:01:03]} 32. Rxa6 {[%clk 0:00:53]}  Qxa6 {[%clk 0:01:03]} 33. Kg2 {[%clk 0:00:43]}  Qa2 {[%clk 0:01:01]} 34. Bc1 {[%clk 0:00:41]}  Qb1 {[%clk 0:01:01]} 35. Qe2 {[%clk 0:00:33]}  Nf5 {[%clk 0:00:59]} 36. Nxf5 {[%clk 0:00:32]}  gxf5 {[%clk 0:00:59]} 37. Qe3 {[%clk 0:00:25]}  Bf8 {[%clk 0:00:53]} 38. Rh1 {[%clk 0:00:23]}  Qc2+ {[%clk 0:00:46]} 39. Kf3 {[%clk 0:00:20]}  Rxh1 {[%clk 0:00:44]} 0-1


[Site "https://www.chess.com"]